[Event "World Prestigious University 2019"]
[Site "Tianjin"]
[Date "2019.11.27"]
[Round "6.6"]
[White "Balashov, Yuri S"]
[Black "Serbanescu, Diana-Maria"]
[Result "0-1"]
[WhiteElo "2465"]
[BlackElo "1990"]
[PlyCount "60"]
[EventDate "2019.11.26"]
[EventType "team-tourn"]
[EventCountry "CHN"]
[TimeControl "1500+10"]
[WhiteClock "0:05:17"]
[BlackClock "0:00:22"]

1. e4 {[%emt 0:00:00]} d6 {[%emt 0:00:00]} 2. d4 {[%emt 0:00:05]} Nf6 {[%emt 0:00:00]} 3. Nc3 {[%emt 0:00:06]} e5 {[%emt 0:00:01]} 4. Nf3 {[%emt 0:00:10]} Nbd7 {[%emt 0:00:02]} 5. g3 {[%emt 0:00:23]} g6 {[%emt 0:00:52]} 6. Bg2 {[%emt 0:00:27]} Bg7 {[%emt 0:00:01]} 7. O-O {[%emt 0:00:09]} O-O {[%emt 0:00:08]} 8. a4 {[%emt 0:01:01]} h6 {[%emt 0:00:54]} 9. Re1 {[%emt 0:00:21]} Kh7 {[%emt 0:00:08]} 10. b3 {[%emt 0:00:35]} a6 {[%emt 0:00:17]} 11. Ba3 {[%emt 0:00:22]} Re8 {[%emt 0:00:03]} 12. Qd2 {[%emt 0:01:47]} Rb8 {[%emt 0:04:13]} 13. Rad1 {[%emt 0:02:22]} b5 {[%emt 0:00:47]} 14. axb5 {[%emt 0:02:43]} axb5 {[%emt 0:00:02]} 15. b4 {[%emt 0:01:48]} exd4 {[%emt 0:05:20]} 16. Nxd4 {[%emt 0:01:02]} Ne5 {[%emt 0:00:01]} 17. Qc1 {[%emt 0:02:21]} Bd7 {[%emt 0:00:13]} 18. Bf1 {[%emt 0:02:37]} Qc8 {[%emt 0:05:42]} 19. f3 {[%emt 0:06:57]} c5 {[%emt 0:00:31]} 20. Ndxb5 {[%emt 0:01:15]} Nxf3+ {[%emt 0:00:43]} 21. Kf2 {[%emt 0:00:06]} Bxb5 {[%emt 0:02:21]} 22. Kxf3 {[%emt 0:00:35]} Bxf1 {[%emt 0:00:16]} 23. Rxf1 {[%emt 0:00:32]} cxb4 {[%emt 0:00:02]} 24. Bxb4 {[%emt 0:00:42]} Rxb4 {[%emt 0:00:03]} 25. Qa3 {[%emt 0:00:09]} Rc4 {[%emt 0:00:35]} 26. Nb5 {[%emt 0:00:18]} Qg4+ {[%emt 0:00:14]} 27. Kg2 {[%emt 0:00:12]} Rxc2+ {[%emt 0:00:29]} 28. Rf2 {[%emt 0:00:24]} Rxf2+ {[%emt 0:00:04]} 29. Kxf2 {[%emt 0:00:02]} Qxd1 {[%emt 0:00:22]} 30. Nxd6 {[%emt 0:00:07]} Nxe4+ {[%emt 0:00:19]} 0-1

[Event "World Prestigious University 2019"]
[Site "Tianjin"]
[Date "2019.11.27"]
[Round "6.7"]
[White "Li, Ethan"]
[Black "Kukhmazov, Arsen"]
[Result "0-1"]
[WhiteElo "2209"]
[BlackElo "2377"]
[PlyCount "128"]
[EventDate "2019.11.26"]
[EventType "team-tourn"]
[EventCountry "CHN"]
[TimeControl "1500+10"]
[WhiteClock "0:00:29"]
[BlackClock "0:00:46"]

1. d4 {[%emt 0:00:00]} Nf6 {[%emt 0:00:00]} 2. c4 {[%emt 0:00:00]} e6 {[%emt 0:00:00]} 3. Nf3 {[%emt 0:00:00]} d5 {[%emt 0:00:00]} 4. g3 {[%emt 0:00:00]} Bb4+ {[%emt 0:00:00]} 5. Bd2 {[%emt 0:00:00]} Be7 {[%emt 0:00:00]} 6. Bg2 {[%emt 0:00:01]} O-O {[%emt 0:00:00]} 7. O-O {[%emt 0:00:02]} Nbd7 {[%emt 0:00:00]} 8. Qc2 {[%emt 0:00:02]} c6 {[%emt 0:00:00]} 9. Rd1 {[%emt 0:00:11]} b6 {[%emt 0:00:01]} 10. Bf4 {[%emt 0:00:15]} Ba6 {[%emt 0:00:07]} 11. Nbd2 {[%emt 0:01:49]} Nh5 {[%emt 0:00:12]} 12. Be3 {[%emt 0:00:06]} Rc8 {[%emt 0:00:02]} 13. Ne5 {[%emt 0:01:19]} Nhf6 {[%emt 0:02:36]} 14. Bf4 {[%emt 0:03:17]} Nxe5 {[%emt 0:04:12]} 15. dxe5 {[%emt 0:00:28]} Nd7 {[%emt 0:00:01]} 16. h4 {[%emt 0:01:12]} f6 {[%emt 0:04:29]} 17. Bh3 {[%emt 0:02:43]} f5 {[%emt 0:01:03]} 18. e4 {[%emt 0:02:09]} g6 {[%emt 0:08:06]} 19. exf5 {[%emt 0:04:25]} gxf5 {[%emt 0:00:00]} 20. Nf3 {[%emt 0:00:14]} Qe8 {[%emt 0:02:10]} 21. Nd4 {[%emt 0:02:29]} Bc5 {[%emt 0:00:01]} 22. b3 {[%emt 0:02:48]} Bxd4 {[%emt 0:01:44]} 23. Rxd4 {[%emt 0:00:01]} c5 {[%emt 0:00:07]} 24. Rdd1 {[%emt 0:00:23]} d4 {[%emt 0:00:01]} 25. Bg2 {[%emt 0:00:36]} Rc7 {[%emt 0:00:24]} 26. Bh6 {[%emt 0:00:05]} Rf7 {[%emt 0:00:06]} 27. Bf3 {[%emt 0:00:01]} Nxe5 {[%emt 0:00:11]} 28. Bh5 {[%emt 0:00:02]} Ng6 {[%emt 0:00:01]} 29. Bf4 {[%emt 0:00:32]} e5 {[%emt 0:00:14]} 30. Re1 {[%emt 0:00:09]} Rce7 {[%emt 0:00:01]} 31. Bg5 {[%emt 0:00:32]} Re6 {[%emt 0:00:00]} 32. Bf3 {[%emt 0:00:29]} e4 {[%emt 0:00:08]} 33. Bg2 {[%emt 0:00:01]} Bb7 {[%emt 0:00:10]} 34. a3 {[%emt 0:00:17]} Ne5 {[%emt 0:01:10]} 35. b4 {[%emt 0:00:22]} Nd3 {[%emt 0:00:54]} 36. Reb1 f4 {[%emt 0:00:36]} 37. bxc5 {[%emt 0:00:24]} fxg3 {[%emt 0:00:42]} 38. fxg3 {[%emt 0:00:16]} Rf2 {[%emt 0:00:13]} 39. Qd1 {[%emt 0:00:37]} Rxg2+ {[%emt 0:00:01]} 40. Kxg2 {[%emt 0:00:01]} e3+ {[%emt 0:00:01]} 41. Kh2 {[%emt 0:00:38]} Qc6 {[%emt 0:00:59]} 42. Ra2 {[%emt 0:00:01]} Nf2 {[%emt 0:00:40]} 43. Qf1 {[%emt 0:00:01]} Qf3 {[%emt 0:00:23]} 44. Re1 {[%emt 0:00:31]} Ng4+ {[%emt 0:00:12]} 45. Kh3 {[%emt 0:00:01]} Nf2+ {[%emt 0:00:14]} 46. Kh2 {[%emt 0:00:01]} bxc5 {[%emt 0:00:08]} 47. Rb2 {[%emt 0:00:29]} Bc6 {[%emt 0:00:01]} 48. Rb8+ {[%emt 0:01:14]} Kg7 {[%emt 0:00:00]} 49. Rc8 {[%emt 0:00:01]} e2 {[%emt 0:00:18]} 50. Rc7+ {[%emt 0:00:10]} Kg6 {[%emt 0:00:18]} 51. Qg1 {[%emt 0:00:01]} Ng4+ {[%emt 0:00:13]} 52. Kh3 {[%emt 0:00:01]} Nf2+ {[%emt 0:00:01]} 53. Kh2 {[%emt 0:00:02]} d3 {[%emt 0:00:13]} 54. Bf4 {[%emt 0:00:12]} h5 {[%emt 0:00:11]} 55. Bd2 {[%emt 0:00:37]} Ng4+ {[%emt 0:00:05]} 56. Kh3 {[%emt 0:00:01]} Nf2+ {[%emt 0:00:12]} 57. Kh2 {[%emt 0:00:01]} Ne4 {[%emt 0:00:18]} 58. Qe3 {[%emt 0:00:45]} Qxe3 {[%emt 0:00:08]} 59. Bxe3 {[%emt 0:00:01]} Nf6 {[%emt 0:00:04]} 60. Bf4 {[%emt 0:00:17]} Kf5 {[%emt 0:00:11]} 61. Rxa7 {[%emt 0:00:04]} Ke4 {[%emt 0:00:17]} 62. Rf7 {[%emt 0:00:42]} Kd4 {[%emt 0:00:07]} 63. Bc1 {[%emt 0:00:40]} Kxc4 {[%emt 0:00:02]} 64. Kh3 {[%emt 0:00:05]} Kc3 {[%emt 0:00:12]} 0-1

[Event "World Prestigious University 2019"]
[Site "Tianjin"]
[Date "2019.11.27"]
[Round "6.10"]
[White "Daniel, Karim Abbas"]
[Black "Weichao, Chu"]
[Result "1/2-1/2"]
[WhiteElo "2251"]
[BlackElo "2423"]
[PlyCount "95"]
[EventDate "2019.11.26"]
[EventType "team-tourn"]
[EventCountry "CHN"]
[TimeControl "1500+10"]
[WhiteClock "0:02:20"]
[BlackClock "0:00:39"]

1. e4 {[%emt 0:00:00]} c5 {[%emt 0:00:04]} 2. Nf3 {[%emt 0:00:00]} d6 {[%emt 0:00:01]} 3. Bb5+ {[%emt 0:00:00]} Bd7 {[%emt 0:00:02]} 4. c4 {[%emt 0:00:00]} Nc6 {[%emt 0:02:04]} 5. Nc3 {[%emt 0:00:46]} g6 {[%emt 0:00:08]} 6. Bxc6 {[%emt 0:00:07]} Bxc6 {[%emt 0:00:02]} 7. d4 {[%emt 0:00:01]} cxd4 {[%emt 0:00:12]} 8. Nxd4 {[%emt 0:00:06]} Bg7 {[%emt 0:00:05]} 9. O-O {[%emt 0:00:16]} Rc8 {[%emt 0:02:14]} 10. Be3 {[%emt 0:01:44]} Bd7 {[%emt 0:01:14]} 11. b3 {[%emt 0:01:46]} Nf6 {[%emt 0:00:18]} 12. h3 {[%emt 0:01:09]} O-O {[%emt 0:00:30]} 13. Rc1 {[%emt 0:00:12]} a6 {[%emt 0:00:03]} 14. Qd3 {[%emt 0:00:24]} Qa5 {[%emt 0:00:43]} 15. a4 {[%emt 0:01:18]} Rfe8 {[%emt 0:00:32]} 16. Nd5 {[%emt 0:02:29]} Nxd5 {[%emt 0:02:44]} 17. exd5 {[%emt 0:00:03]} e5 {[%emt 0:01:00]} 18. dxe6 {[%emt 0:00:05]} fxe6 {[%emt 0:00:02]} 19. Nf3 {[%emt 0:01:14]} Bc6 {[%emt 0:00:28]} 20. Nd4 {[%emt 0:00:56]} d5 {[%emt 0:00:50]} 21. Nxc6 {[%emt 0:01:36]} bxc6 {[%emt 0:00:24]} 22. Bd4 {[%emt 0:03:19]} Bxd4 {[%emt 0:04:03]} 23. Qxd4 {[%emt 0:00:02]} c5 {[%emt 0:00:02]} 24. Qe5 {[%emt 0:00:37]} d4 {[%emt 0:00:17]} 25. Rcd1 {[%emt 0:00:19]} Qc3 {[%emt 0:04:28]} 26. h4 {[%emt 0:01:00]} Qc2 {[%emt 0:01:36]} 27. b4 {[%emt 0:04:27]} Qxc4 {[%emt 0:01:17]} 28. bxc5 {[%emt 0:00:06]} d3 {[%emt 0:00:02]} 29. Qe3 {[%emt 0:00:51]} Red8 {[%emt 0:01:21]} 30. h5 {[%emt 0:01:59]} Qd5 {[%emt 0:00:34]} 31. hxg6 {[%emt 0:00:10]} hxg6 {[%emt 0:00:01]} 32. Rfe1 {[%emt 0:00:11]} Kg7 {[%emt 0:02:00]} 33. Qxe6 {[%emt 0:01:22]} Qxe6 {[%emt 0:00:03]} 34. Rxe6 {[%emt 0:00:02]} Rxc5 {[%emt 0:00:01]} 35. Rxa6 {[%emt 0:01:20]} d2 {[%emt 0:00:02]} 36. Kf1 {[%emt 0:00:17]} Rh5 {[%emt 0:00:02]} 37. Re6 {[%emt 0:00:21]} Rd4 {[%emt 0:00:43]} 38. Ke2 {[%emt 0:00:19]} Ra5 {[%emt 0:00:02]} 39. Rxd2 {[%emt 0:00:07]} Rxd2+ {[%emt 0:00:03]} 40. Kxd2 {[%emt 0:00:01]} Rxa4 {[%emt 0:00:01]} 41. Ke2 {[%emt 0:00:05]} Ra3 {[%emt 0:00:02]} 42. Re3 {[%emt 0:00:01]} Ra2+ {[%emt 0:00:01]} 43. Kf3 {[%emt 0:00:01]} Kf6 {[%emt 0:00:02]} 44. Rb3 {[%emt 0:00:04]} Rc2 {[%emt 0:00:02]} 45. Kg3 {[%emt 0:00:02]} Ra2 {[%emt 0:00:02]} 46. Rb6+ {[%emt 0:00:32]} Kf7 {[%emt 0:00:01]} 47. f3 {[%emt 0:00:24]} Rc2 {[%emt 0:00:02]} 48. Rb7+ {[%emt 0:00:10]} 1/2-1/2

[Event "World Prestigious University 2019"]
[Site "Tianjin"]
[Date "2019.11.27"]
[Round "6.11"]
[White "Wei, Siyu"]
[Black "Mihov, Filip"]
[Result "0-1"]
[WhiteElo "2106"]
[BlackElo "2191"]
[PlyCount "84"]
[EventDate "2019.11.26"]
[EventType "team-tourn"]
[EventCountry "CHN"]
[TimeControl "1500+10"]
[WhiteClock "0:02:33"]
[BlackClock "0:00:44"]

1. d4 {[%emt 0:00:00]} e6 {[%emt 0:00:00]} 2. Nf3 {[%emt 0:00:00]} b6 {[%emt 0:00:04]} 3. e4 {[%emt 0:00:27]} d5 {[%emt 0:00:45]} 4. e5 {[%emt 0:00:13]} Ne7 {[%emt 0:00:51]} 5. Bd3 {[%emt 0:01:13]} Ba6 {[%emt 0:00:05]} 6. Bxa6 {[%emt 0:00:55]} Nxa6 {[%emt 0:00:03]} 7. Nc3 {[%emt 0:00:59]} c5 {[%emt 0:00:22]} 8. Bg5 {[%emt 0:00:45]} Qd7 {[%emt 0:00:07]} 9. O-O {[%emt 0:00:53]} Nf5 {[%emt 0:01:07]} 10. Ne2 {[%emt 0:02:02]} Be7 {[%emt 0:01:10]} 11. Bxe7 {[%emt 0:00:05]} Nxe7 {[%emt 0:00:11]} 12. c3 {[%emt 0:00:17]} O-O {[%emt 0:00:04]} 13. Qd3 {[%emt 0:00:32]} Nc7 {[%emt 0:00:20]} 14. Ng5 {[%emt 0:00:18]} Ng6 {[%emt 0:01:10]} 15. f4 {[%emt 0:00:18]} Qb5 {[%emt 0:03:03]} 16. Qd2 {[%emt 0:02:07]} h6 {[%emt 0:01:00]} 17. Nf3 {[%emt 0:00:24]} Ne7 {[%emt 0:00:04]} 18. Nh4 {[%emt 0:01:35]} Nf5 {[%emt 0:02:13]} 19. Nxf5 {[%emt 0:00:37]} exf5 {[%emt 0:00:02]} 20. h3 {[%emt 0:01:28]} Ne6 {[%emt 0:03:22]} 21. g4 {[%emt 0:00:59]} fxg4 {[%emt 0:01:22]} 22. hxg4 {[%emt 0:00:02]} cxd4 {[%emt 0:00:01]} 23. cxd4 {[%emt 0:01:22]} Rac8 {[%emt 0:00:06]} 24. f5 {[%emt 0:02:10]} Ng5 {[%emt 0:00:07]} 25. Nc3 {[%emt 0:00:03]} Qc4 {[%emt 0:01:00]} 26. Rac1 {[%emt 0:00:50]} Rfd8 {[%emt 0:01:49]} 27. b3 {[%emt 0:03:47]} Qb4 {[%emt 0:00:07]} 28. Ne4 {[%emt 0:00:13]} Nf3+ {[%emt 0:00:43]} 29. Rxf3 {[%emt 0:00:16]} Qxd2 {[%emt 0:00:02]} 30. Nxd2 {[%emt 0:00:03]} Rxc1+ {[%emt 0:00:02]} 31. Nf1 {[%emt 0:00:21]} Rdc8 {[%emt 0:00:38]} 32. Kg2 {[%emt 0:00:31]} Rd1 {[%emt 0:00:08]} 33. Ne3 {[%emt 0:02:27]} Rxd4 {[%emt 0:00:23]} 34. e6 {[%emt 0:00:04]} fxe6 {[%emt 0:00:18]} 35. fxe6 {[%emt 0:00:02]} Re8 {[%emt 0:00:15]} 36. Nf5 {[%emt 0:01:54]} Rxg4+ {[%emt 0:00:04]} 37. Kh3 {[%emt 0:00:03]} Rg1 {[%emt 0:02:04]} 38. Re3 {[%emt 0:00:10]} Rg6 {[%emt 0:01:49]} 39. Nd4 {[%emt 0:00:31]} Kf8 {[%emt 0:00:10]} 40. Re5 {[%emt 0:00:16]} Rg5 {[%emt 0:00:31]} 41. Re3 {[%emt 0:00:01]} Ke7 {[%emt 0:00:12]} 42. Rc3 {[%emt 0:00:03]} Kf6 {[%emt 0:01:33]} 0-1

[Event "World Prestigious University 2019"]
[Site "Tianjin"]
[Date "2019.11.27"]
[Round "6.13"]
[White "Grigory, Oparin"]
[Black "Isakov, Michael"]
[Result "1-0"]
[WhiteElo "2660"]
[BlackElo "2162"]
[PlyCount "63"]
[EventDate "2019.11.26"]
[EventType "team-tourn"]
[EventCountry "CHN"]
[TimeControl "1500+10"]
[WhiteClock "0:02:23"]
[BlackClock "0:04:26"]

1. g3 {[%emt 0:00:00]} d5 {[%emt 0:00:00]} 2. Nf3 {[%emt 0:00:00]} Nf6 {[%emt 0:00:00]} 3. Bg2 {[%emt 0:00:00]} e6 {[%emt 0:00:00]} 4. O-O {[%emt 0:00:04]} Be7 {[%emt 0:00:00]} 5. c4 {[%emt 0:00:02]} O-O {[%emt 0:00:00]} 6. b3 {[%emt 0:00:09]} b6 {[%emt 0:00:38]} 7. cxd5 {[%emt 0:00:17]} exd5 {[%emt 0:00:02]} 8. d4 {[%emt 0:00:23]} Bb7 {[%emt 0:00:48]} 9. Bb2 {[%emt 0:00:03]} Nbd7 {[%emt 0:00:06]} 10. Nc3 {[%emt 0:00:25]} Re8 {[%emt 0:01:09]} 11. Ne5 {[%emt 0:01:51]} Nf8 {[%emt 0:03:15]} 12. Rc1 {[%emt 0:01:31]} c5 {[%emt 0:01:40]} 13. dxc5 {[%emt 0:01:53]} bxc5 {[%emt 0:03:15]} 14. Na4 {[%emt 0:00:04]} Qa5 {[%emt 0:01:49]} 15. Nd3 {[%emt 0:02:39]} Ne6 {[%emt 0:00:56]} 16. Bxf6 {[%emt 0:00:08]} gxf6 {[%emt 0:00:54]} 17. e3 {[%emt 0:00:28]} Rac8 {[%emt 0:01:55]} 18. Qg4+ {[%emt 0:01:02]} Kh8 {[%emt 0:01:41]} 19. Nf4 {[%emt 0:03:54]} Nxf4 {[%emt 0:02:02]} 20. Qxf4 {[%emt 0:00:03]} Qc7 {[%emt 0:00:06]} 21. Qh4 {[%emt 0:04:25]} Qe5 {[%emt 0:01:16]} 22. Rfd1 {[%emt 0:00:03]} Red8 {[%emt 0:00:31]} 23. Nc3 {[%emt 0:00:36]} Bc6 {[%emt 0:01:53]} 24. Ne2 {[%emt 0:00:38]} Rc7 {[%emt 0:01:18]} 25. Nf4 {[%emt 0:00:14]} Ba8 {[%emt 0:00:59]} 26. Rd2 {[%emt 0:02:37]} a5 {[%emt 0:00:01]} 27. Rcd1 {[%emt 0:00:56]} Rcd7 {[%emt 0:00:00]} 28. Bh3 {[%emt 0:00:31]} Rd6 {[%emt 0:00:27]} 29. Bg2 {[%emt 0:00:41]} R6d7 {[%emt 0:00:01]} 30. Nd3 {[%emt 0:00:10]} Qg5 {[%emt 0:01:00]} 31. Qxg5 {[%emt 0:00:05]} fxg5 {[%emt 0:00:05]} 32. Ne5 {[%emt 0:00:02]} 1-0

[Event "World Prestigious University 2019"]
[Site "Tianjin"]
[Date "2019.11.27"]
[Round "6.14"]
[White "Lu, Andrew H"]
[Black "Dmitry, Gordievskiy"]
[Result "0-1"]
[WhiteElo "2071"]
[BlackElo "2590"]
[PlyCount "58"]
[EventDate "2019.11.26"]
[EventType "team-tourn"]
[EventCountry "CHN"]
[TimeControl "1500+10"]
[WhiteClock "0:05:24"]
[BlackClock "0:04:15"]

1. d4 {[%emt 0:00:00]} Nf6 {[%emt 0:00:00]} 2. Nf3 {[%emt 0:00:00]} b6 {[%emt 0:00:04]} 3. g3 {[%emt 0:00:05]} Bb7 {[%emt 0:00:05]} 4. Bg2 {[%emt 0:00:02]} g6 {[%emt 0:00:23]} 5. O-O {[%emt 0:00:12]} Bg7 {[%emt 0:00:03]} 6. b3 {[%emt 0:00:07]} O-O {[%emt 0:00:34]} 7. Bb2 {[%emt 0:00:08]} d6 {[%emt 0:01:10]} 8. c4 {[%emt 0:00:36]} e6 {[%emt 0:01:17]} 9. Qc2 {[%emt 0:00:29]} Nbd7 {[%emt 0:00:44]} 10. Nbd2 {[%emt 0:00:38]} c5 {[%emt 0:00:25]} 11. Rad1 {[%emt 0:01:07]} Qc7 {[%emt 0:00:19]} 12. Rfe1 {[%emt 0:01:58]} a6 {[%emt 0:00:16]} 13. Qb1 {[%emt 0:01:18]} b5 {[%emt 0:02:30]} 14. dxc5 {[%emt 0:01:38]} Nxc5 {[%emt 0:00:33]} 15. e4 {[%emt 0:02:51]} Nfxe4 {[%emt 0:05:01]} 16. Bxg7 {[%emt 0:01:48]} Nxd2 {[%emt 0:00:15]} 17. Rxd2 {[%emt 0:00:25]} Kxg7 {[%emt 0:00:05]} 18. Qb2+ {[%emt 0:01:12]} e5 {[%emt 0:02:16]} 19. b4 {[%emt 0:02:36]} Na4 {[%emt 0:01:12]} 20. Qb3 {[%emt 0:00:18]} f6 {[%emt 0:01:23]} 21. cxb5 {[%emt 0:03:02]} axb5 {[%emt 0:00:08]} 22. Red1 {[%emt 0:00:09]} d5 {[%emt 0:01:33]} 23. Rc2 {[%emt 0:00:46]} Qe7 {[%emt 0:02:17]} 24. Rdc1 {[%emt 0:00:41]} Rf7 {[%emt 0:00:01]} 25. Bf1 {[%emt 0:01:48]} d4 {[%emt 0:00:42]} 26. Bxb5 {[%emt 0:00:42]} Nc3 {[%emt 0:00:21]} 27. Be2 {[%emt 0:00:22]} Bd5 {[%emt 0:00:20]} 28. Bc4 {[%emt 0:00:16]} Bxf3 {[%emt 0:00:21]} 29. Bxf7 {[%emt 0:00:21]} Qxf7 {[%emt 0:00:08]} 0-1

[Event "World Prestigious University 2019"]
[Site "Tianjin"]
[Date "2019.11.27"]
[Round "6.15"]
[White "Wang, Nancy"]
[Black "Papanek, Ella"]
[Result "0-1"]
[WhiteElo "1823"]
[BlackElo "1777"]
[PlyCount "104"]
[EventDate "2019.11.26"]
[EventType "team-tourn"]
[EventCountry "CHN"]
[TimeControl "1500+10"]
[WhiteClock "0:00:49"]
[BlackClock "0:00:32"]

1. e4 {[%emt 0:00:00]} c5 {[%emt 0:00:00]} 2. Nc3 {[%emt 0:00:00]} e6 {[%emt 0:00:00]} 3. g3 {[%emt 0:00:00]} Nc6 {[%emt 0:01:00]} 4. Bg2 {[%emt 0:00:01]} a6 {[%emt 0:01:04]} 5. d3 {[%emt 0:00:28]} b5 {[%emt 0:00:13]} 6. Be3 {[%emt 0:00:35]} Bb7 {[%emt 0:00:48]} 7. Qd2 {[%emt 0:01:12]} Nf6 {[%emt 0:00:24]} 8. e5 {[%emt 0:03:35]} Ng4 {[%emt 0:01:34]} 9. Bg5 {[%emt 0:03:26]} Qc7 {[%emt 0:00:54]} 10. f4 {[%emt 0:00:02]} h6 {[%emt 0:03:53]} 11. h3 {[%emt 0:00:38]} Ngxe5 {[%emt 0:01:46]} 12. Bh4 {[%emt 0:05:33]} Ng6 {[%emt 0:00:51]} 13. Nf3 {[%emt 0:00:12]} Nd4 {[%emt 0:02:35]} 14. O-O {[%emt 0:02:35]} Nf5 {[%emt 0:03:07]} 15. Rae1 {[%emt 0:01:21]} Ngxh4 {[%emt 0:00:10]} 16. Nxh4 {[%emt 0:00:14]} Nxg3 {[%emt 0:01:45]} 17. Rf2 {[%emt 0:00:34]} Be7 {[%emt 0:00:15]} 18. Nf3 {[%emt 0:00:27]} Nf5 {[%emt 0:02:44]} 19. Rfe2 {[%emt 0:02:51]} Rc8 {[%emt 0:00:37]} 20. Ne5 {[%emt 0:01:22]} Bh4 {[%emt 0:02:07]} 21. Rd1 {[%emt 0:01:13]} d5 {[%emt 0:00:27]} 22. Ng4 {[%emt 0:01:50]} d4 {[%emt 0:01:21]} 23. Nd5 {[%emt 0:00:19]} Bxd5 {[%emt 0:00:40]} 24. Bxd5 {[%emt 0:00:02]} h5 {[%emt 0:00:21]} 25. Bxe6 {[%emt 0:00:23]} fxe6 {[%emt 0:00:20]} 26. Rxe6+ {[%emt 0:00:02]} Kf8 {[%emt 0:00:00]} 27. Nh2 {[%emt 0:00:09]} Ne3 {[%emt 0:00:11]} 28. Rc1 {[%emt 0:00:09]} Kg8 {[%emt 0:00:19]} 29. Re4 {[%emt 0:00:06]} Rh6 {[%emt 0:00:05]} 30. Nf3 {[%emt 0:00:09]} Rg6+ {[%emt 0:00:07]} 31. Kh1 {[%emt 0:00:07]} Bg3 {[%emt 0:00:11]} 32. Ne5 {[%emt 0:00:13]} Rf6 {[%emt 0:00:14]} 33. Qe2 {[%emt 0:00:26]} h4 {[%emt 0:00:09]} 34. Qh5 {[%emt 0:00:12]} Bxf4 {[%emt 0:00:15]} 35. Ng6 {[%emt 0:00:03]} Rxg6 {[%emt 0:00:11]} 36. Qxg6 {[%emt 0:00:12]} Qf7 {[%emt 0:00:11]} 37. Rg1 {[%emt 0:00:00]} Qxg6 38. Rxg6 {[%emt 0:00:01]} Bh6 {[%emt 0:00:12]} 39. Rxh4 {[%emt 0:00:13]} Kh7 {[%emt 0:00:16]} 40. Rxa6 {[%emt 0:00:03]} Rf8 {[%emt 0:00:01]} 41. Rb6 {[%emt 0:00:33]} Rf1+ {[%emt 0:00:07]} 42. Kh2 {[%emt 0:00:01]} Rf2+ {[%emt 0:00:12]} 43. Kg1 {[%emt 0:00:15]} Rg2+ {[%emt 0:00:04]} 44. Kh1 {[%emt 0:00:02]} b4 {[%emt 0:00:02]} 45. a4 {[%emt 0:00:21]} bxa3 {[%emt 0:00:04]} 46. bxa3 {[%emt 0:00:01]} Rxc2 {[%emt 0:00:02]} 47. a4 {[%emt 0:00:08]} Ra2 {[%emt 0:00:03]} 48. Ra6 {[%emt 0:00:05]} Nf5 {[%emt 0:00:17]} 49. Rg4 {[%emt 0:00:13]} Be3 {[%emt 0:00:32]} 50. Rg2 {[%emt 0:00:23]} Ra1+ {[%emt 0:00:07]} 51. Kh2 {[%emt 0:00:03]} Bf4+ {[%emt 0:00:02]} 52. Rg3 {[%emt 0:00:05]} Bxg3+ {[%emt 0:00:01]} 0-1

[Event "World Prestigious University 2019"]
[Site "Tianjin"]
[Date "2019.11.27"]
[Round "6.16"]
[White "Fernandez, Daniel Howard"]
[Black "Theodorou, Nikolas"]
[Result "0-1"]
[WhiteElo "2444"]
[BlackElo "2555"]
[PlyCount "96"]
[EventDate "2019.11.26"]
[EventType "team-tourn"]
[EventCountry "CHN"]
[TimeControl "1500+10"]
[WhiteClock "0:03:07"]
[BlackClock "0:00:19"]

1. Nf3 {[%emt 0:00:00]} Nf6 {[%emt 0:00:00]} 2. g3 {[%emt 0:00:00]} g6 {[%emt 0:00:00]} 3. Bg2 {[%emt 0:00:00]} Bg7 {[%emt 0:00:00]} 4. O-O {[%emt 0:00:00]} O-O {[%emt 0:00:00]} 5. d4 {[%emt 0:00:02]} d6 {[%emt 0:00:21]} 6. c4 {[%emt 0:00:10]} Nbd7 {[%emt 0:00:10]} 7. Nc3 {[%emt 0:00:37]} e5 {[%emt 0:00:03]} 8. d5 {[%emt 0:02:36]} a5 {[%emt 0:00:13]} 9. e4 {[%emt 0:01:02]} Nc5 {[%emt 0:00:35]} 10. Qc2 {[%emt 0:00:16]} Nh5 {[%emt 0:00:39]} 11. Bg5 {[%emt 0:02:11]} f6 {[%emt 0:00:13]} 12. Be3 {[%emt 0:00:19]} f5 {[%emt 0:00:22]} 13. exf5 {[%emt 0:01:08]} gxf5 {[%emt 0:00:27]} 14. Rae1 {[%emt 0:03:27]} b6 {[%emt 0:00:12]} 15. Ng5 {[%emt 0:03:00]} e4 {[%emt 0:01:09]} 16. Bxc5 {[%emt 0:03:14]} Qxg5 {[%emt 0:01:05]} 17. Be3 {[%emt 0:01:09]} Qg6 {[%emt 0:00:25]} 18. Ne2 {[%emt 0:00:45]} Bd7 {[%emt 0:02:06]} 19. Nf4 {[%emt 0:00:37]} Nxf4 {[%emt 0:00:03]} 20. Bxf4 {[%emt 0:00:01]} Rae8 {[%emt 0:00:19]} 21. b3 {[%emt 0:00:54]} Rf7 {[%emt 0:00:14]} 22. Qd2 {[%emt 0:02:34]} Bf6 {[%emt 0:00:44]} 23. f3 {[%emt 0:00:55]} Rfe7 {[%emt 0:00:12]} 24. fxe4 {[%emt 0:00:12]} fxe4 {[%emt 0:00:03]} 25. Be3 {[%emt 0:00:15]} Bg4 {[%emt 0:00:18]} 26. Bd4 {[%emt 0:00:35]} Bxd4+ {[%emt 0:02:55]} 27. Qxd4 {[%emt 0:00:01]} e3 {[%emt 0:00:03]} 28. Bf3 {[%emt 0:00:49]} Bh3 {[%emt 0:01:32]} 29. Bg2 {[%emt 0:00:02]} Bxg2 {[%emt 0:00:24]} 30. Kxg2 {[%emt 0:00:01]} Re5 {[%emt 0:00:41]} 31. Re2 {[%emt 0:00:18]} h5 {[%emt 0:03:08]} 32. Rf4 {[%emt 0:00:41]} R8e7 {[%emt 0:00:46]} 33. Kf3 {[%emt 0:00:18]} Kh7 {[%emt 0:02:08]} 34. a4 {[%emt 0:01:23]} Qb1 {[%emt 0:00:42]} 35. Kg2 {[%emt 0:00:48]} Qxb3 {[%emt 0:00:25]} 36. Rf3 {[%emt 0:00:09]} Qxa4 {[%emt 0:01:12]} 37. Qd3+ {[%emt 0:00:07]} Kg7 {[%emt 0:00:06]} 38. Qd4 {[%emt 0:00:25]} Qe8 {[%emt 0:02:00]} 39. Rexe3 {[%emt 0:00:12]} Qg6 {[%emt 0:00:33]} 40. Kg1 {[%emt 0:00:15]} Kh7 {[%emt 0:00:27]} 41. Rxe5 {[%emt 0:00:02]} Rxe5 {[%emt 0:00:10]} 42. Qf4 {[%emt 0:00:12]} Re1+ {[%emt 0:01:19]} 43. Kg2 {[%emt 0:00:01]} Re7 {[%emt 0:00:27]} 44. Rf2 {[%emt 0:00:14]} a4 {[%emt 0:00:33]} 45. Ra2 {[%emt 0:00:20]} Rf7 {[%emt 0:00:10]} 46. Qd2 {[%emt 0:00:10]} Qe4+ {[%emt 0:00:14]} 47. Kg1 {[%emt 0:00:08]} Qb1+ {[%emt 0:00:02]} 48. Kg2 {[%emt 0:00:06]} Qf1# {[%emt 0:00:03]} 0-1